[Event "Titled Tuesday Blitz October 11 Late 2022"]
[White "Przybylski, Wojciech"]
[Black "Alexikov, Alexander"]
[WhiteFideId "1117599"]
[BlackFideId "14103958"]
[WhiteElo "2221"]
[BlackElo "2222"]
[Result "1-0"]
[Round "04"]
[TimeControl "180+1"]
[Date "2022.10.12"]
[WhiteClock "0:00:18"]
[BlackClock "0:00:02"]

1. e4 {[%clk 0:03:00]}  c5 {[%clk 0:02:58]} 2. Nf3 {[%clk 0:03:00]}  d6 {[%clk 0:02:58]} 3. d4 {[%clk 0:02:58]}  cxd4 {[%clk 0:02:58]} 4. Nxd4 {[%clk 0:02:59]}  Nf6 {[%clk 0:02:57]} 5. Nc3 {[%clk 0:03:00]}  a6 {[%clk 0:02:57]} 6. Be3 {[%clk 0:03:00]}  e5 {[%clk 0:02:55]} 7. Nb3 {[%clk 0:03:00]}  Be6 {[%clk 0:02:54]} 8. f3 {[%clk 0:03:00]}  Be7 {[%clk 0:02:53]} 9. Qd2 {[%clk 0:03:00]}  h5 {[%clk 0:02:52]} 10. O-O-O {[%clk 0:03:00]}  Nbd7 {[%clk 0:02:51]} 11. Kb1 {[%clk 0:03:00]}  Qc7 {[%clk 0:02:43]} 12. g3 {[%clk 0:02:58]}  g6 {[%clk 0:02:26]} 13. h3 {[%clk 0:02:53]}  Kf8 {[%clk 0:02:23]} 14. Bd3 {[%clk 0:02:49]}  Kg7 {[%clk 0:02:22]} 15. f4 {[%clk 0:02:43]}  b5 {[%clk 0:02:07]} 16. f5 {[%clk 0:02:39]}  Bc4 {[%clk 0:02:05]} 17. Rhg1 {[%clk 0:02:30]}  b4 {[%clk 0:01:58]} 18. Ne2 {[%clk 0:02:26]}  a5 {[%clk 0:01:57]} 19. g4 {[%clk 0:02:26]}  hxg4 {[%clk 0:01:53]} 20. hxg4 {[%clk 0:02:25]}  a4 {[%clk 0:01:51]} 21. Nbc1 {[%clk 0:02:25]}  Bxd3 {[%clk 0:01:37]} 22. cxd3 {[%clk 0:02:21]}  Bf8 {[%clk 0:01:25]} 23. g5 {[%clk 0:02:20]}  Nh5 {[%clk 0:01:24]} 24. f6+ {[%clk 0:02:18]}  Kg8 {[%clk 0:01:23]} 25. d4 {[%clk 0:02:15]}  b3 {[%clk 0:01:19]} 26. a3 {[%clk 0:02:13]}  Nb6 {[%clk 0:01:12]} 27. d5 {[%clk 0:01:43]}  Rc8 {[%clk 0:01:10]} 28. Bxb6 {[%clk 0:01:30]}  Qxb6 {[%clk 0:01:09]} 29. Nc3 {[%clk 0:01:29]}  Qa5 {[%clk 0:00:50]} 30. Nd3 {[%clk 0:01:21]}  Rc4 {[%clk 0:00:46]} 31. Rc1 {[%clk 0:01:03]}  Rd4 {[%clk 0:00:45]} 32. Qe3 {[%clk 0:01:02]}  Qa6 {[%clk 0:00:40]} 33. Nb4 {[%clk 0:01:00]}  Qa8 {[%clk 0:00:33]} 34. Nc6 {[%clk 0:00:57]}  Rc4 {[%clk 0:00:32]} 35. Ne2 {[%clk 0:00:52]}  Rc5 {[%clk 0:00:25]} 36. Rxc5 {[%clk 0:00:49]}  dxc5 {[%clk 0:00:25]} 37. Nxe5 {[%clk 0:00:49]}  Bd6 {[%clk 0:00:22]} 38. Nc4 {[%clk 0:00:47]}  Bf8 {[%clk 0:00:19]} 39. Qd2 {[%clk 0:00:44]}  Qb8 {[%clk 0:00:18]} 40. e5 {[%clk 0:00:43]}  Qc7 {[%clk 0:00:11]} 41. Qd3 {[%clk 0:00:37]}  Rh7 {[%clk 0:00:10]} 42. Qe4 {[%clk 0:00:32]}  Qb7 {[%clk 0:00:05]} 43. e6 {[%clk 0:00:27]}  fxe6 {[%clk 0:00:04]} 44. Qxg6+ {[%clk 0:00:27]}  Kh8 {[%clk 0:00:04]} 45. dxe6 {[%clk 0:00:27]}  Qf3 {[%clk 0:00:02]} 46. e7 {[%clk 0:00:18]} 1-0


[Site "https://www.chess.com"]

[Event "Titled Tuesday Blitz October 11 Late 2022"]
[White "Remolar Gallen, Jose"]
[Black "Matinian, Nikita"]
[WhiteFideId "2215187"]
[BlackFideId "24129100"]
[WhiteElo "2488"]
[BlackElo "2699"]
[Result "0-1"]
[Round "04"]
[TimeControl "180+1"]
[Date "2022.10.12"]
[WhiteClock "0:00:04"]
[BlackClock "0:00:56"]

1. d4 {[%clk 0:03:00]}  Nf6 {[%clk 0:02:59]} 2. Nf3 {[%clk 0:03:01]}  g6 {[%clk 0:02:59]} 3. Nbd2 {[%clk 0:03:00]}  d5 {[%clk 0:02:58]} 4. g3 {[%clk 0:02:57]}  Bg7 {[%clk 0:02:56]} 5. Bg2 {[%clk 0:02:58]}  c5 {[%clk 0:02:53]} 6. dxc5 {[%clk 0:02:53]}  Nbd7 {[%clk 0:02:50]} 7. O-O {[%clk 0:02:48]}  Nxc5 {[%clk 0:02:50]} 8. c4 {[%clk 0:02:47]}  O-O {[%clk 0:02:47]} 9. cxd5 {[%clk 0:02:44]}  Nxd5 {[%clk 0:02:47]} 10. Nb3 {[%clk 0:02:34]}  Na4 {[%clk 0:02:21]} 11. Nbd4 {[%clk 0:02:18]}  Qa5 {[%clk 0:02:11]} 12. Bd2 {[%clk 0:02:03]}  Qa6 {[%clk 0:02:10]} 13. Qb3 {[%clk 0:01:57]}  e6 {[%clk 0:02:02]} 14. e4 {[%clk 0:01:54]}  Ndb6 {[%clk 0:01:59]} 15. Rfc1 {[%clk 0:01:45]}  Nd7 {[%clk 0:01:53]} 16. Bf1 {[%clk 0:01:36]}  Nac5 {[%clk 0:01:53]} 17. Bxa6 {[%clk 0:00:58]}  Nxb3 {[%clk 0:01:53]} 18. axb3 {[%clk 0:00:57]}  bxa6 {[%clk 0:01:53]} 19. Bb4 {[%clk 0:00:56]}  Re8 {[%clk 0:01:50]} 20. Rc7 {[%clk 0:00:48]}  Ne5 {[%clk 0:01:33]} 21. Rac1 {[%clk 0:00:29]}  Nxf3+ {[%clk 0:01:32]} 22. Nxf3 {[%clk 0:00:30]}  Bxb2 {[%clk 0:01:32]} 23. R1c2 {[%clk 0:00:29]}  Bf6 {[%clk 0:01:28]} 24. e5 {[%clk 0:00:28]}  Bg7 {[%clk 0:01:26]} 25. Bd6 {[%clk 0:00:26]}  h6 {[%clk 0:01:25]} 26. Nd4 {[%clk 0:00:25]}  a5 {[%clk 0:01:18]} 27. Nc6 {[%clk 0:00:24]}  Ba6 {[%clk 0:01:14]} 28. Nxa5 {[%clk 0:00:19]}  Bd3 {[%clk 0:01:14]} 29. R2c3 {[%clk 0:00:18]}  Be4 {[%clk 0:01:14]} 30. f3 {[%clk 0:00:14]}  Bd5 {[%clk 0:01:14]} 31. Kf2 {[%clk 0:00:14]}  Rad8 {[%clk 0:01:10]} 32. f4 {[%clk 0:00:13]}  Rxd6 {[%clk 0:01:04]} 33. exd6 {[%clk 0:00:14]}  Bxc3 {[%clk 0:01:04]} 34. Rxc3 {[%clk 0:00:15]}  Rd8 {[%clk 0:01:04]} 35. Rc7 {[%clk 0:00:15]}  Rxd6 {[%clk 0:01:02]} 36. Rxa7 {[%clk 0:00:15]}  Rb6 {[%clk 0:01:02]} 37. Ke3 {[%clk 0:00:11]}  Bxb3 {[%clk 0:01:03]} 38. Nxb3 {[%clk 0:00:05]}  Rxb3+ {[%clk 0:01:03]} 39. Ke4 {[%clk 0:00:05]}  Rb2 {[%clk 0:01:01]} 40. h4 {[%clk 0:00:05]}  h5 {[%clk 0:01:01]} 41. Kf3 {[%clk 0:00:04]}  Rb3+ {[%clk 0:01:01]} 42. Kg2 {[%clk 0:00:05]}  Kg7 {[%clk 0:01:01]} 43. Ra5 {[%clk 0:00:05]}  Rb7 {[%clk 0:00:58]} 44. Rc5 {[%clk 0:00:05]}  Rd7 {[%clk 0:00:59]} 45. Ra5 {[%clk 0:00:05]}  Kf6 {[%clk 0:00:59]} 46. Kf3 {[%clk 0:00:06]}  Rd5 {[%clk 0:00:57]} 47. Ra6 {[%clk 0:00:05]}  Rd3+ {[%clk 0:00:56]} 48. Kf2 {[%clk 0:00:05]}  Kf5 {[%clk 0:00:57]} 49. Ra5+ {[%clk 0:00:04]}  Kg4 {[%clk 0:00:56]} 50. Rg5+ {[%clk 0:00:04]}  Kh3 {[%clk 0:00:56]} 0-1


[Site "https://www.chess.com"]

[Event "Titled Tuesday Blitz October 11 Late 2022"]
[White "Reprintsev, Alexander"]
[Black "Boruchovsky, Avital"]
[WhiteFideId "14100541"]
[BlackFideId "2800055"]
[WhiteElo "2501"]
[BlackElo "2819"]
[Result "0-1"]
[Round "04"]
[TimeControl "180+1"]
[Date "2022.10.12"]
[WhiteClock "0:00:01"]
[BlackClock "0:01:31"]

1. e4 {[%clk 0:02:50]}  e6 {[%clk 0:02:59]} 2. d4 {[%clk 0:02:48]}  d5 {[%clk 0:02:59]} 3. Nc3 {[%clk 0:02:47]}  Bb4 {[%clk 0:02:58]} 4. Ne2 {[%clk 0:02:46]}  Nf6 {[%clk 0:02:52]} 5. e5 {[%clk 0:02:38]}  Nfd7 {[%clk 0:02:52]} 6. a3 {[%clk 0:02:36]}  Be7 {[%clk 0:02:51]} 7. Nf4 {[%clk 0:02:34]}  c5 {[%clk 0:02:47]} 8. Qh5 {[%clk 0:01:59]}  g6 {[%clk 0:02:40]} 9. Qh6 {[%clk 0:01:57]}  Bf8 {[%clk 0:02:40]} 10. Qh3 {[%clk 0:01:53]}  cxd4 {[%clk 0:02:40]} 11. Nb5 {[%clk 0:01:06]}  Nxe5 {[%clk 0:02:40]} 12. Nxd4 {[%clk 0:01:02]}  Nbc6 {[%clk 0:02:35]} 13. Bb5 {[%clk 0:00:56]}  Bg7 {[%clk 0:02:34]} 14. Be3 {[%clk 0:00:39]}  O-O {[%clk 0:02:33]} 15. O-O-O {[%clk 0:00:38]}  a6 {[%clk 0:02:27]} 16. Be2 {[%clk 0:00:37]}  Bd7 {[%clk 0:02:25]} 17. Rhe1 {[%clk 0:00:32]}  Rc8 {[%clk 0:02:20]} 18. Kb1 {[%clk 0:00:31]}  Na5 {[%clk 0:02:13]} 19. Bc1 {[%clk 0:00:20]}  Nec4 {[%clk 0:02:11]} 20. Nb3 {[%clk 0:00:18]}  e5 {[%clk 0:02:07]} 21. Rxd5 {[%clk 0:00:08]}  Bxh3 {[%clk 0:02:04]} 22. Rxd8 {[%clk 0:00:07]}  Rfxd8 {[%clk 0:02:04]} 23. Nxh3 {[%clk 0:00:07]}  Nxb3 {[%clk 0:02:02]} 24. cxb3 {[%clk 0:00:07]}  Nd2+ {[%clk 0:02:02]} 25. Ka2 {[%clk 0:00:06]}  Ne4 {[%clk 0:01:46]} 26. f3 {[%clk 0:00:05]}  Nc5 {[%clk 0:01:45]} 27. Nf2 {[%clk 0:00:04]}  b5 {[%clk 0:01:44]} 28. Be3 {[%clk 0:00:03]}  f5 {[%clk 0:01:40]} 29. Bg5 {[%clk 0:00:01]}  Re8 {[%clk 0:01:31]} 0-1


[Site "https://www.chess.com"]

[Event "Titled Tuesday Blitz October 11 Late 2022"]
[White "Reshetnikov, Alexey"]
[Black "Sourath Biswas"]
[WhiteFideId "4162080"]
[BlackFideId "35091484"]
[WhiteElo "2783"]
[BlackElo "2596"]
[Result "1-0"]
[Round "04"]
[TimeControl "180+1"]
[Date "2022.10.12"]
[WhiteClock "0:00:39"]
[BlackClock "0:00:05"]

1. e4 {[%clk 0:03:00]}  c6 {[%clk 0:02:58]} 2. d4 {[%clk 0:03:00]}  d5 {[%clk 0:02:58]} 3. e5 {[%clk 0:03:00]}  Bf5 {[%clk 0:02:58]} 4. h4 {[%clk 0:03:01]}  h5 {[%clk 0:02:57]} 5. c4 {[%clk 0:03:01]}  e6 {[%clk 0:02:57]} 6. Nc3 {[%clk 0:03:02]}  Bb4 {[%clk 0:02:57]} 7. Ne2 {[%clk 0:02:57]}  dxc4 {[%clk 0:02:38]} 8. Ng3 {[%clk 0:02:54]}  Bg6 {[%clk 0:02:30]} 9. Bxc4 {[%clk 0:02:50]}  Nh6 {[%clk 0:02:29]} 10. Bg5 {[%clk 0:02:41]}  Qb6 {[%clk 0:02:26]} 11. O-O {[%clk 0:02:37]}  Nf5 {[%clk 0:02:25]} 12. Nxf5 {[%clk 0:02:01]}  Bxf5 {[%clk 0:02:26]} 13. Qe2 {[%clk 0:01:43]}  Nd7 {[%clk 0:01:14]} 14. Rad1 {[%clk 0:01:41]}  Nf8 {[%clk 0:01:06]} 15. Ne4 {[%clk 0:01:29]}  Ng6 {[%clk 0:00:44]} 16. a3 {[%clk 0:01:20]}  Bxe4 {[%clk 0:00:43]} 17. Qxe4 {[%clk 0:01:21]}  Be7 {[%clk 0:00:44]} 18. Bxe6 {[%clk 0:01:16]}  Bxg5 {[%clk 0:00:36]} 19. hxg5 {[%clk 0:01:17]}  Ne7 {[%clk 0:00:31]} 20. Bc4 {[%clk 0:01:05]}  Qxb2 {[%clk 0:00:26]} 21. Rb1 {[%clk 0:00:56]}  Qxa3 {[%clk 0:00:26]} 22. Rxb7 {[%clk 0:00:54]}  O-O {[%clk 0:00:26]} 23. g6 {[%clk 0:00:52]}  Nd5 {[%clk 0:00:26]} 24. gxf7+ {[%clk 0:00:46]}  Kh8 {[%clk 0:00:26]} 25. Bxd5 {[%clk 0:00:42]}  cxd5 {[%clk 0:00:25]} 26. Qg6 {[%clk 0:00:39]}  Qa6 {[%clk 0:00:05]} 1-0


[Site "https://www.chess.com"]

[Event "Titled Tuesday Blitz October 11 Late 2022"]
[White "Sailer, Mike"]
[Black "Domingo Nunez, Ruben"]
[WhiteFideId "2012901"]
[BlackFideId "22245570"]
[WhiteElo "2244"]
[BlackElo "2637"]
[Result "0-1"]
[Round "04"]
[TimeControl "180+1"]
[Date "2022.10.12"]
[WhiteClock "0:00:27"]
[BlackClock "0:00:50"]

1. d4 {[%clk 0:03:00]}  g6 {[%clk 0:02:56]} 2. Nc3 {[%clk 0:03:00]}  Bg7 {[%clk 0:02:57]} 3. Bf4 {[%clk 0:02:58]}  c6 {[%clk 0:02:55]} 4. e4 {[%clk 0:02:58]}  d5 {[%clk 0:02:55]} 5. e5 {[%clk 0:02:58]}  f6 {[%clk 0:02:53]} 6. exf6 {[%clk 0:02:56]}  Nxf6 {[%clk 0:02:53]} 7. Qd2 {[%clk 0:02:54]}  Qb6 {[%clk 0:02:50]} 8. O-O-O {[%clk 0:02:54]}  O-O {[%clk 0:02:44]} 9. Bh6 {[%clk 0:02:49]}  Bxh6 {[%clk 0:02:42]} 10. Qxh6 {[%clk 0:02:49]}  Ng4 {[%clk 0:02:42]} 11. Qg5 {[%clk 0:02:36]}  Nxf2 {[%clk 0:02:38]} 12. Bd3 {[%clk 0:02:36]}  Bf5 {[%clk 0:02:20]} 13. Nf3 {[%clk 0:02:29]}  Nxh1 {[%clk 0:01:57]} 14. Rxh1 {[%clk 0:02:15]}  Qc7 {[%clk 0:01:01]} 15. Ne5 {[%clk 0:02:05]}  Nd7 {[%clk 0:00:58]} 16. Bxf5 {[%clk 0:01:48]}  Nxe5 {[%clk 0:00:58]} 17. Be6+ {[%clk 0:01:38]}  Nf7 {[%clk 0:00:58]} 18. h4 {[%clk 0:01:32]}  Kg7 {[%clk 0:00:57]} 19. Bxf7 {[%clk 0:01:24]}  Rxf7 {[%clk 0:00:58]} 20. Kb1 {[%clk 0:00:33]}  Qf4 {[%clk 0:00:56]} 21. Qxf4 {[%clk 0:00:30]}  Rxf4 {[%clk 0:00:57]} 22. Re1 {[%clk 0:00:26]}  Raf8 {[%clk 0:00:54]} 23. g3 {[%clk 0:00:27]}  Rf1 {[%clk 0:00:50]} 0-1


[Site "https://www.chess.com"]

[Event "Titled Tuesday Blitz October 11 Late 2022"]
[White "Sanal, Vahap"]
[Black "Melkumyan, Hrant"]
[WhiteFideId "6300545"]
[BlackFideId "13302485"]
[WhiteElo "2574"]
[BlackElo "2604"]
[Result "1/2-1/2"]
[Round "04"]
[TimeControl "180+1"]
[Date "2022.10.11"]
[WhiteClock "0:00:08"]
[BlackClock "0:00:12"]

1. Nf3 {[%clk 0:03:00]}  d5 {[%clk 0:02:58]} 2. b3 {[%clk 0:03:01]}  c5 {[%clk 0:02:57]} 3. e3 {[%clk 0:03:00]}  a6 {[%clk 0:02:57]} 4. Bb2 {[%clk 0:02:59]}  Nc6 {[%clk 0:02:56]} 5. g3 {[%clk 0:03:00]}  f6 {[%clk 0:02:49]} 6. d4 {[%clk 0:02:58]}  cxd4 {[%clk 0:02:46]} 7. exd4 {[%clk 0:02:57]}  Bg4 {[%clk 0:02:42]} 8. Bg2 {[%clk 0:02:57]}  e6 {[%clk 0:02:43]} 9. O-O {[%clk 0:02:57]}  Bd6 {[%clk 0:02:40]} 10. Re1 {[%clk 0:02:57]}  Qd7 {[%clk 0:02:36]} 11. c4 {[%clk 0:02:55]}  Nge7 {[%clk 0:02:35]} 12. Nc3 {[%clk 0:02:53]}  O-O {[%clk 0:02:33]} 13. h3 {[%clk 0:02:36]}  Bh5 {[%clk 0:02:33]} 14. Na4 {[%clk 0:02:27]}  Rae8 {[%clk 0:02:00]} 15. Nb6 {[%clk 0:02:25]}  Qd8 {[%clk 0:02:01]} 16. c5 {[%clk 0:02:25]}  Bc7 {[%clk 0:02:00]} 17. Rxe6 {[%clk 0:02:20]}  Bxb6 {[%clk 0:01:57]} 18. cxb6 {[%clk 0:02:21]}  Qxb6 {[%clk 0:01:57]} 19. Qd2 {[%clk 0:02:11]}  Bf7 {[%clk 0:01:49]} 20. Ree1 {[%clk 0:02:08]}  Ng6 {[%clk 0:01:40]} 21. h4 {[%clk 0:02:04]}  h6 {[%clk 0:01:34]} 22. Rec1 {[%clk 0:01:56]}  Rc8 {[%clk 0:01:30]} 23. Nh2 {[%clk 0:01:42]}  Qd8 {[%clk 0:01:23]} 24. Nf1 {[%clk 0:01:38]}  Re8 {[%clk 0:01:21]} 25. Ne3 {[%clk 0:01:38]}  Nge7 {[%clk 0:01:19]} 26. Re1 {[%clk 0:01:26]}  Qd7 {[%clk 0:01:19]} 27. Kh2 {[%clk 0:01:26]}  Be6 {[%clk 0:01:19]} 28. Rac1 {[%clk 0:01:20]}  Nf5 {[%clk 0:01:19]} 29. Nxf5 {[%clk 0:01:19]}  Bxf5 {[%clk 0:01:19]} 30. Qf4 {[%clk 0:01:20]}  Be6 {[%clk 0:01:11]} 31. Rc5 {[%clk 0:01:18]}  Rcd8 {[%clk 0:01:04]} 32. Bf3 {[%clk 0:01:02]}  Bf7 {[%clk 0:00:54]} 33. Rcc1 {[%clk 0:01:01]}  Rxe1 {[%clk 0:00:49]} 34. Rxe1 {[%clk 0:01:02]}  Re8 {[%clk 0:00:49]} 35. Rxe8+ {[%clk 0:01:02]}  Qxe8 {[%clk 0:00:46]} 36. Bc3 {[%clk 0:01:02]}  Qd7 {[%clk 0:00:43]} 37. h5 {[%clk 0:00:57]}  Be6 {[%clk 0:00:43]} 38. g4 {[%clk 0:00:52]}  Qd8 {[%clk 0:00:40]} 39. Kg2 {[%clk 0:00:42]}  Kf7 {[%clk 0:00:40]} 40. Be2 {[%clk 0:00:39]}  Qc8 {[%clk 0:00:41]} 41. f3 {[%clk 0:00:38]}  Ne7 {[%clk 0:00:39]} 42. Qe3 {[%clk 0:00:36]}  Nc6 {[%clk 0:00:35]} 43. Bd3 {[%clk 0:00:36]}  Qd7 {[%clk 0:00:34]} 44. Bg6+ {[%clk 0:00:35]}  Kg8 {[%clk 0:00:34]} 45. Be1 {[%clk 0:00:36]}  Kf8 {[%clk 0:00:32]} 46. Bg3 {[%clk 0:00:35]}  Kg8 {[%clk 0:00:30]} 47. a3 {[%clk 0:00:28]}  Bf7 {[%clk 0:00:31]} 48. Bf5 {[%clk 0:00:28]}  Qe7 {[%clk 0:00:31]} 49. Qxe7 {[%clk 0:00:27]}  Nxe7 {[%clk 0:00:32]} 50. Bd7 {[%clk 0:00:27]}  Kf8 {[%clk 0:00:28]} 51. Bd6 {[%clk 0:00:28]}  Be8 {[%clk 0:00:27]} 52. Bf5 {[%clk 0:00:23]}  Kf7 {[%clk 0:00:24]} 53. Bg6+ {[%clk 0:00:19]}  Nxg6 {[%clk 0:00:24]} 54. hxg6+ {[%clk 0:00:19]}  Kxg6 {[%clk 0:00:25]} 55. Kg3 {[%clk 0:00:16]}  Bb5 {[%clk 0:00:24]} 56. a4 {[%clk 0:00:15]}  Be2 {[%clk 0:00:23]} 57. a5 {[%clk 0:00:15]}  Kf7 {[%clk 0:00:22]} 58. Kf4 {[%clk 0:00:13]}  Bd3 {[%clk 0:00:20]} 59. b4 {[%clk 0:00:13]}  Ke6 {[%clk 0:00:19]} 60. Bf8 {[%clk 0:00:13]}  Kf7 {[%clk 0:00:16]} 61. Bc5 {[%clk 0:00:13]}  Bc2 {[%clk 0:00:17]} 62. Kg3 {[%clk 0:00:12]}  Bd1 {[%clk 0:00:16]} 63. Kf4 {[%clk 0:00:12]}  g6 {[%clk 0:00:16]} 64. Kg3 {[%clk 0:00:11]}  h5 {[%clk 0:00:14]} 65. gxh5 {[%clk 0:00:11]}  gxh5 {[%clk 0:00:15]} 66. Kf4 {[%clk 0:00:09]}  Ke6 {[%clk 0:00:16]} 67. Bf8 {[%clk 0:00:09]}  Kd7 {[%clk 0:00:16]} 68. Bg7 {[%clk 0:00:07]}  Ke7 {[%clk 0:00:16]} 69. Bh6 {[%clk 0:00:06]}  Kf7 {[%clk 0:00:16]} 70. Kg3 {[%clk 0:00:06]}  Ke6 {[%clk 0:00:16]} 71. Bf8 {[%clk 0:00:05]}  Kd7 {[%clk 0:00:16]} 72. Bg7 {[%clk 0:00:05]}  Ke7 {[%clk 0:00:16]} 73. Bh6 {[%clk 0:00:05]}  Kf7 {[%clk 0:00:16]} 74. Bf4 {[%clk 0:00:06]}  Kg6 {[%clk 0:00:16]} 75. Bd6 {[%clk 0:00:06]}  Kf5 {[%clk 0:00:17]} 76. Be7 {[%clk 0:00:06]}  Be2 {[%clk 0:00:15]} 77. Bd8 {[%clk 0:00:07]}  Ke6 {[%clk 0:00:15]} 78. Kf2 {[%clk 0:00:06]}  Bc4 {[%clk 0:00:13]} 79. Kg3 {[%clk 0:00:06]}  Bb3 {[%clk 0:00:13]} 80. Bb6 {[%clk 0:00:06]}  Kd7 {[%clk 0:00:13]} 81. Bc5 {[%clk 0:00:06]}  Kc6 {[%clk 0:00:14]} 82. Kh4 {[%clk 0:00:06]}  Bd1 {[%clk 0:00:07]} 83. Kxh5 {[%clk 0:00:07]}  Bxf3+ {[%clk 0:00:07]} 84. Kg6 {[%clk 0:00:07]}  Be2 {[%clk 0:00:06]} 85. Kxf6 {[%clk 0:00:08]}  Bb5 {[%clk 0:00:07]} 86. Ke7 {[%clk 0:00:08]}  Bc4 {[%clk 0:00:07]} 87. Kd8 {[%clk 0:00:06]}  Bb5 {[%clk 0:00:08]} 88. Ke7 {[%clk 0:00:06]}  Bc4 {[%clk 0:00:09]} 89. Kf6 {[%clk 0:00:07]}  Bb5 {[%clk 0:00:10]} 90. Ke5 {[%clk 0:00:07]}  Bc4 {[%clk 0:00:11]} 91. Kf6 {[%clk 0:00:08]}  Bb5 {[%clk 0:00:12]} 1/2-1/2


[Site "https://www.chess.com"]

[Event "Titled Tuesday Blitz October 11 Late 2022"]
[White "Sowul, Bartosz"]
[Black "Georgiadis, Ioannis"]
[WhiteFideId "1137590"]
[BlackFideId "4208900"]
[WhiteElo "2188"]
[BlackElo "2446"]
[Result "0-1"]
[Round "04"]
[TimeControl "180+1"]
[Date "2022.10.12"]
[WhiteClock "0:00:15"]
[BlackClock "0:01:09"]

1. e4 {[%clk 0:03:00]}  c6 {[%clk 0:02:56]} 2. d4 {[%clk 0:03:00]}  d5 {[%clk 0:02:55]} 3. exd5 {[%clk 0:03:01]}  cxd5 {[%clk 0:02:55]} 4. Nf3 {[%clk 0:03:02]}  Nc6 {[%clk 0:02:55]} 5. Bb5 {[%clk 0:03:02]}  Bg4 {[%clk 0:02:55]} 6. h3 {[%clk 0:03:02]}  Bh5 {[%clk 0:02:55]} 7. Nc3 {[%clk 0:02:59]}  e6 {[%clk 0:02:54]} 8. O-O {[%clk 0:02:35]}  Bd6 {[%clk 0:02:53]} 9. a4 {[%clk 0:02:35]}  Ne7 {[%clk 0:02:53]} 10. a5 {[%clk 0:02:35]}  a6 {[%clk 0:02:53]} 11. Ba4 {[%clk 0:02:34]}  O-O {[%clk 0:02:53]} 12. Be3 {[%clk 0:02:28]}  Nxa5 {[%clk 0:02:52]} 13. g4 {[%clk 0:02:22]}  Bg6 {[%clk 0:02:41]} 14. Ne5 {[%clk 0:02:12]}  Nc4 {[%clk 0:02:35]} 15. Bf4 {[%clk 0:01:31]}  Nxb2 {[%clk 0:02:31]} 16. Qb1 {[%clk 0:01:22]}  Nxa4 {[%clk 0:02:30]} 17. Nxa4 {[%clk 0:01:21]}  b5 {[%clk 0:02:30]} 18. Nc5 {[%clk 0:01:21]}  Bxc5 {[%clk 0:02:24]} 19. dxc5 {[%clk 0:01:21]}  Qc8 {[%clk 0:02:25]} 20. Be3 {[%clk 0:01:17]}  Nc6 {[%clk 0:02:21]} 21. Nxc6 {[%clk 0:01:15]}  Qxc6 {[%clk 0:02:17]} 22. Qb2 {[%clk 0:01:07]}  f6 {[%clk 0:02:05]} 23. f4 {[%clk 0:01:05]}  Be4 {[%clk 0:02:05]} 24. Bd4 {[%clk 0:01:03]}  e5 {[%clk 0:01:45]} 25. fxe5 {[%clk 0:00:59]}  fxe5 {[%clk 0:01:46]} 26. Bxe5 {[%clk 0:00:59]}  Qxc5+ {[%clk 0:01:46]} 27. Bd4 {[%clk 0:00:50]}  Qxc2 {[%clk 0:01:46]} 28. Rxf8+ {[%clk 0:00:47]}  Kxf8 {[%clk 0:01:39]} 29. Bxg7+ {[%clk 0:00:38]}  Kg8 {[%clk 0:01:37]} 30. Rc1 {[%clk 0:00:31]}  Qxb2 {[%clk 0:01:31]} 31. Bxb2 {[%clk 0:00:32]}  a5 {[%clk 0:01:28]} 32. h4 {[%clk 0:00:23]}  b4 {[%clk 0:01:28]} 33. g5 {[%clk 0:00:23]}  a4 {[%clk 0:01:13]} 34. h5 {[%clk 0:00:18]}  a3 {[%clk 0:01:13]} 35. Bd4 {[%clk 0:00:17]}  b3 {[%clk 0:01:12]} 36. g6 {[%clk 0:00:15]}  b2 {[%clk 0:01:09]} 0-1


[Site "https://www.chess.com"]

[Event "Titled Tuesday Blitz October 11 Late 2022"]
[White "Stork, Oliver"]
[Black "Taichman, Ori"]
[WhiteFideId "12955728"]
[BlackFideId "2804069"]
[WhiteElo "2433"]
[BlackElo "2644"]
[Result "0-1"]
[Round "04"]
[TimeControl "180+1"]
[Date "2022.10.12"]
[WhiteClock "0:00:05"]
[BlackClock "0:00:12"]

1. c4 {[%clk 0:03:00]}  g6 {[%clk 0:02:53]} 2. Nc3 {[%clk 0:02:58]}  Bg7 {[%clk 0:02:53]} 3. g3 {[%clk 0:02:58]}  Nf6 {[%clk 0:02:53]} 4. Bg2 {[%clk 0:02:57]}  O-O {[%clk 0:02:54]} 5. Nf3 {[%clk 0:02:58]}  d6 {[%clk 0:02:55]} 6. O-O {[%clk 0:02:58]}  Nc6 {[%clk 0:02:55]} 7. d4 {[%clk 0:02:58]}  Rb8 {[%clk 0:02:54]} 8. h3 {[%clk 0:02:45]}  a6 {[%clk 0:02:42]} 9. e4 {[%clk 0:02:45]}  b5 {[%clk 0:02:42]} 10. cxb5 {[%clk 0:02:43]}  axb5 {[%clk 0:02:43]} 11. d5 {[%clk 0:02:40]}  b4 {[%clk 0:02:39]} 12. Na4 {[%clk 0:02:25]}  Na5 {[%clk 0:02:31]} 13. Nd4 {[%clk 0:02:21]}  Bd7 {[%clk 0:02:23]} 14. Be3 {[%clk 0:02:12]}  c5 {[%clk 0:02:22]} 15. dxc6 {[%clk 0:02:09]}  Nxc6 {[%clk 0:02:22]} 16. Rc1 {[%clk 0:02:07]}  Nxd4 {[%clk 0:02:08]} 17. Bxd4 {[%clk 0:02:08]}  Qa5 {[%clk 0:02:08]} 18. b3 {[%clk 0:02:02]}  Bxa4 {[%clk 0:01:43]} 19. bxa4 {[%clk 0:02:03]}  Nd7 {[%clk 0:01:42]} 20. Bxg7 {[%clk 0:01:50]}  Kxg7 {[%clk 0:01:43]} 21. Qd4+ {[%clk 0:01:47]}  Kg8 {[%clk 0:01:35]} 22. f4 {[%clk 0:01:47]}  Qxa4 {[%clk 0:01:29]} 23. e5 {[%clk 0:01:42]}  dxe5 {[%clk 0:01:23]} 24. fxe5 {[%clk 0:01:43]}  Nb6 {[%clk 0:00:44]} 25. Rc7 {[%clk 0:01:41]}  b3 {[%clk 0:00:21]} 26. Qxa4 {[%clk 0:01:38]}  Nxa4 {[%clk 0:00:22]} 27. axb3 {[%clk 0:01:35]}  Rxb3 {[%clk 0:00:23]} 28. Rxe7 {[%clk 0:01:29]}  Rxg3 {[%clk 0:00:23]} 29. Kh2 {[%clk 0:01:29]}  Rd3 {[%clk 0:00:20]} 30. Rc7 {[%clk 0:00:27]}  Nc3 {[%clk 0:00:14]} 31. Rf3 {[%clk 0:00:22]}  Rxf3 {[%clk 0:00:13]} 32. Bxf3 {[%clk 0:00:23]}  Nb5 {[%clk 0:00:13]} 33. Rd7 {[%clk 0:00:23]}  Re8 {[%clk 0:00:12]} 34. Bd5 {[%clk 0:00:22]}  Rxe5 {[%clk 0:00:12]} 35. Bxf7+ {[%clk 0:00:21]}  Kf8 {[%clk 0:00:11]} 36. Bc4 {[%clk 0:00:20]}  Na3 {[%clk 0:00:11]} 37. Bd3 {[%clk 0:00:19]}  Re3 {[%clk 0:00:11]} 38. Kg2 {[%clk 0:00:18]}  Ke8 {[%clk 0:00:12]} 39. Rd5 {[%clk 0:00:17]}  Ke7 {[%clk 0:00:11]} 40. h4 {[%clk 0:00:15]}  Ke6 {[%clk 0:00:11]} 41. Rd8 {[%clk 0:00:16]}  Ke5 {[%clk 0:00:10]} 42. Kf2 {[%clk 0:00:10]}  Rh3 {[%clk 0:00:10]} 43. Ke2 {[%clk 0:00:09]}  Kf4 {[%clk 0:00:09]} 44. Ra8 {[%clk 0:00:08]}  Rh2+ {[%clk 0:00:09]} 45. Kd1 {[%clk 0:00:06]}  Ke3 {[%clk 0:00:10]} 46. Rxa3 {[%clk 0:00:05]}  Rd2+ {[%clk 0:00:10]} 47. Ke1 {[%clk 0:00:05]}  Rxd3 {[%clk 0:00:11]} 48. Rxd3+ {[%clk 0:00:05]}  Kxd3 {[%clk 0:00:12]} 49. Kf2 {[%clk 0:00:04]}  Ke4 {[%clk 0:00:11]} 50. Kg3 {[%clk 0:00:05]}  h5 {[%clk 0:00:12]} 0-1


[Site "https://www.chess.com"]